bitfinex/quotes_BTCUSD_20260101
["timestamp","ask_amount","ask_price","bid_price","bid_amount"]
[1767249853818,0.03423092,87700.0,87696.0,0.01140302]
[1767249854028,0.03423092,87700.0,87689.0,0.00010619]
[1767249854220,0.001099,87696.0,87689.0,0.00010619]
[1767249854539,0.51591588,87699.0,87689.0,0.00010619]
[1767249854917,0.01140523,87695.0,87689.0,0.00010619]
[1767249855123,0.01140523,87695.0,87689.0,1.9e-07]
[1767249856302,0.01140523,87695.0,87678.0,0.0001459]
[1767249856434,0.51591588,87690.0,87679.0,0.0114]
[1767249857054,0.01140549,87689.0,87679.0,0.0114]
[1767249858607,0.01140549,87689.0,87678.0,0.0001459]
[1767249863590,0.01140549,87689.0,87679.0,0.04692757]
[1767249863785,0.01140549,87689.0,87679.0,0.0583328]
[1767249864090,0.01140549,87689.0,87679.0,0.04692757]
[1767249866363,0.01140549,87689.0,87679.0,0.0583328]
[1767249868252,0.01140549,87689.0,87680.0,0.0114051]
[1767249868461,0.01140549,87689.0,87679.0,0.0583328]
[1767249868666,0.01140549,87689.0,87680.0,0.0114051]
[1767249869793,0.01140549,87689.0,87679.0,0.0583328]
[1767249870154,0.01140549,87689.0,87681.0,0.04692757]
[1767249876541,0.01145793,87689.0,87681.0,0.04692757]
[1767249876842,5.244e-05,87689.0,87681.0,0.04692757]
[1767249877281,0.03423643,87688.0,87681.0,0.04692757]
[1767249879893,5.244e-05,87689.0,87683.0,0.04692757]
[1767249880118,5.244e-05,87689.0,87683.0,0.05833228]
[1767249880301,5.244e-05,87689.0,87684.0,0.05833215]
[1767249880883,5.244e-05,87689.0,87685.0,0.01140445]
[1767249881077,5.244e-05,87689.0,87686.0,0.04692757]
[1767249892620,5.244e-05,87689.0,87685.0,0.01140445]
[1767249892866,5.244e-05,87689.0,87684.0,0.05821843]
[1767249893290,5.244e-05,87689.0,87685.0,0.01140445]
[1767249893456,5.244e-05,87689.0,87685.0,0.0582183]
[1767249893635,5.244e-05,87689.0,87685.0,0.04681385]
[1767249893839,5.244e-05,87689.0,87685.0,0.0582183]
[1767249896350,5.244e-05,87689.0,87686.0,0.01140432]
[1767249896677,5.244e-05,87689.0,87685.0,0.04681385]
[1767249897292,5.244e-05,87689.0,87686.0,0.01140432]
[1767249897851,5.244e-05,87689.0,87685.0,0.0582183]
[1767249898778,5.244e-05,87689.0,87685.0,0.01140445]
[1767249898979,5.244e-05,87689.0,87686.0,0.05821817]
[1767249899197,5.244e-05,87689.0,87686.0,0.04681385]
[1767249899379,5.244e-05,87689.0,87686.0,0.05821817]
[1767249900760,5.244e-05,87689.0,87686.0,0.01140432]
[1767249901397,5.244e-05,87689.0,87685.0,0.01140445]
[1767249902005,5.244e-05,87689.0,87686.0,0.01140432]
[1767249902210,5.244e-05,87689.0,87685.0,0.01140445]
[1767249902541,5.244e-05,87689.0,87685.0,0.0582183]
[1767249903921,5.244e-05,87689.0,87685.0,0.04681385]
[1767249904199,5.244e-05,87689.0,87685.0,0.0582183]
[1767249906014,5.244e-05,87689.0,87685.0,0.04681385]
[1767249906782,5.244e-05,87689.0,87685.0,0.0582183]
[1767249907717,5.244e-05,87689.0,87686.0,0.01140432]
[1767249907881,5.244e-05,87689.0,87685.0,0.0582183]
[1767249908452,5.244e-05,87689.0,87686.0,0.05821817]
[1767249908453,4.4e-07,87689.0,87686.0,0.05821817]
[1767249908677,4.4e-07,87689.0,87687.0,0.04681385]
[1767249909099,4.4e-07,87689.0,87686.0,0.06842545]
[1767249909267,4.4e-07,87689.0,87688.0,0.05702034]
[1767249910017,4.4e-07,87689.0,87686.0,0.06842545]
[1767249910635,4.4e-07,87689.0,87687.0,0.05702044]
[1767249913281,4.4e-07,87689.0,87686.0,0.01140432]
[1767249914372,4.4e-07,87689.0,87686.0,0.06842549]
[1767249915078,4.4e-07,87689.0,87687.0,0.0570205]
[1767249917301,4.4e-07,87689.0,87688.0,0.04681385]
[1767249917455,4.4e-07,87689.0,87686.0,0.11523934]
[1767249917838,4.4e-07,87689.0,87686.0,0.05821817]
[1767249918456,4.4e-07,87689.0,87686.0,0.11523927]
[1767249919808,4.4e-07,87689.0,87687.0,0.04681385]
[1767249924564,4.4e-07,87689.0,87688.0,0.02286]
[1767249924878,4.4e-07,87689.0,87687.0,0.04681385]
[1767249924879,0.000495,87688.0,87687.0,0.04681385]
[1767249925088,4.4e-07,87689.0,87687.0,0.04681385]
[1767249927168,4.4e-07,87689.0,87687.0,0.10383435]
[1767249927404,4.4e-07,87689.0,87688.0,0.04675327]
[1767249940177,4.4e-07,87689.0,87688.0,0.04625827]
[1767249952215,4.4e-07,87689.0,87686.0,0.01140432]
[1767249952392,4.4e-07,87689.0,87686.0,0.06059249]
[1767249956018,4.4e-07,87689.0,87686.0,0.1176136]
[1767249956304,4.4e-07,87689.0,87687.0,0.04918817]
[1767249958014,0.00055,87687.0,87685.0,0.06058817]
[1767249958395,4.4e-07,87689.0,87685.0,0.06058817]
[1767249959138,4.4e-07,87689.0,87685.0,0.01085]
[1767249964200,4.4e-07,87689.0,87682.0,0.0114]
[1767249968178,4.4e-07,87689.0,87682.0,0.02280484]
[1767249968385,4.4e-07,87689.0,87682.0,0.0114]
[1767249970973,4.4e-07,87689.0,87682.0,0.02280484]
[1767249971181,4.4e-07,87689.0,87683.0,0.01140471]
[1767249972052,4.4e-07,87689.0,87682.0,0.02280484]
[1767249972257,4.4e-07,87689.0,87683.0,0.01140471]
[1767249972515,4.4e-07,87689.0,87684.0,0.01140458]
[1767249974883,4.4e-07,87689.0,87687.0,0.04918817]
[1767249975308,4.4e-07,87689.0,87686.0,0.06842541]
[1767249975720,4.4e-07,87689.0,87685.0,0.01140445]
[1767249975892,4.4e-07,87689.0,87686.0,0.01140432]
[1767249976420,4.4e-07,87689.0,87685.0,0.01140445]
[1767249976625,4.4e-07,87689.0,87686.0,0.01140432]
[1767249982014,4.4e-07,87689.0,87685.0,0.01140445]
[1767249982188,4.4e-07,87689.0,87686.0,0.01140432]
[1767249982546,4.4e-07,87689.0,87685.0,0.01140445]
[1767249982978,4.4e-07,87689.0,87686.0,0.01140432]
[1767249984484,4.4e-07,87689.0,87684.0,0.01140458]
[1767249984687,4.4e-07,87689.0,87686.0,0.01140432]
[1767249986067,4.4e-07,87689.0,87682.0,0.0114]
[1767249990956,4.4e-07,87689.0,87682.0,0.02280484]
[1767249992023,4.4e-07,87689.0,87682.0,0.0114]
[1767249993307,4.4e-07,87689.0,87682.0,0.02280484]
[1767249994892,4.4e-07,87689.0,87683.0,0.01140471]
[1767249995108,4.4e-07,87689.0,87684.0,0.01140458]
[1767249995646,4.4e-07,87689.0,87685.0,0.01140445]
[1767249996348,4.4e-07,87689.0,87682.0,0.0114]
[1767249997071,4.4e-07,87689.0,87682.0,0.02280484]
[1767249997271,4.4e-07,87689.0,87682.0,0.0114]
[1767249999023,4.4e-07,87689.0,87682.0,0.02280484]
[1767249999424,4.4e-07,87689.0,87683.0,0.01140471]
[1767249999617,4.4e-07,87689.0,87682.0,0.02280484]
[1767249999821,4.4e-07,87689.0,87684.0,0.01140458]
[1767250000079,4.4e-07,87689.0,87685.0,0.01140445]
[1767250000698,4.4e-07,87689.0,87684.0,0.01140458]
[1767250001080,4.4e-07,87689.0,87685.0,0.01140445]
[1767250001284,4.4e-07,87689.0,87686.0,0.01140432]
[1767250002262,4.4e-07,87689.0,87686.0,0.06842543]
[1767250006688,4.4e-07,87689.0,87683.0,0.05702343]
[1767250007019,4.4e-07,87689.0,87685.0,0.01140445]
[1767250007898,4.4e-07,87689.0,87686.0,0.01140432]
[1767250010268,4.4e-07,87689.0,87685.0,0.01140445]
[1767250010464,4.4e-07,87689.0,87686.0,0.01140432]
[1767250010673,4.4e-07,87689.0,87685.0,0.01140445]
[1767250011458,4.4e-07,87689.0,87686.0,0.01140432]
[1767250011943,4.4e-07,87689.0,87682.0,0.0114]
[1767250012478,4.4e-07,87689.0,87682.0,0.02280484]
[1767250012744,4.4e-07,87689.0,87684.0,0.01140458]
[1767250013018,4.4e-07,87689.0,87683.0,0.01140471]
[1767250013382,4.4e-07,87689.0,87684.0,0.01140458]
[1767250014009,4.4e-07,87689.0,87683.0,0.01140471]
[1767250014417,4.4e-07,87689.0,87682.0,0.0114]
[1767250015594,4.4e-07,87689.0,87683.0,0.01140471]
[1767250016389,4.4e-07,87689.0,87682.0,0.02280484]
[1767250016762,4.4e-07,87689.0,87683.0,0.01140471]
[1767250017176,4.4e-07,87689.0,87682.0,0.02280484]
[1767250017854,4.4e-07,87689.0,87683.0,0.01140471]
[1767250018914,4.4e-07,87689.0,87684.0,0.01140458]
[1767250019054,4.4e-07,87689.0,87683.0,0.01140471]
[1767250019435,4.4e-07,87689.0,87684.0,0.01140458]
[1767250019859,4.4e-07,87689.0,87683.0,0.01140471]
[1767250021248,4.4e-07,87689.0,87682.0,0.0114]
[1767250021658,4.4e-07,87689.0,87682.0,0.02280484]
[1767250021837,4.4e-07,87689.0,87683.0,0.01140471]
[1767250023028,4.4e-07,87689.0,87679.0,0.01140523]
[1767250023228,4.4e-07,87689.0,87680.0,0.0114051]
[1767250023434,4.4e-07,87689.0,87678.0,0.0001459]
[1767250024019,4.4e-07,87689.0,87679.0,0.01140523]
[1767250024477,4.4e-07,87689.0,87680.0,0.0114051]
[1767250025508,4.4e-07,87689.0,87679.0,0.01140523]
[1767250026017,4.4e-07,87689.0,87680.0,0.0114051]
[1767250026220,4.4e-07,87689.0,87679.0,0.01140523]
[1767250026397,4.4e-07,87689.0,87680.0,0.0114051]
[1767250026598,4.4e-07,87689.0,87679.0,0.01140523]
[1767250028413,4.4e-07,87689.0,87680.0,0.0114051]
[1767250029523,4.4e-07,87689.0,87679.0,0.01140523]
[1767250029718,4.4e-07,87689.0,87680.0,0.0114051]
[1767250030351,4.4e-07,87689.0,87679.0,0.01140523]
[1767250030853,4.4e-07,87689.0,87680.0,0.0114051]
[1767250032361,4.4e-07,87689.0,87681.0,0.01140497]
[1767250033348,4.4e-07,87689.0,87680.0,0.0114051]
[1767250033949,4.4e-07,87689.0,87681.0,0.01140497]
[1767250034433,4.4e-07,87689.0,87680.0,0.0114051]
[1767250034871,4.4e-07,87689.0,87681.0,0.01140497]
[1767250035077,4.4e-07,87689.0,87682.0,0.01140484]
[1767250035252,4.4e-07,87689.0,87681.0,0.01140497]
[1767250041469,4.4e-07,87689.0,87682.0,0.01140484]
[1767250041826,4.4e-07,87689.0,87681.0,0.01140497]
[1767250043707,4.4e-07,87689.0,87680.0,0.05706501]
[1767250045269,4.4e-07,87689.0,87681.0,0.01140497]
[1767250046079,4.4e-07,87689.0,87683.0,0.01140471]
[1767250046277,4.4e-07,87689.0,87684.0,0.01140458]
[1767250046443,4.4e-07,87689.0,87684.0,0.05706449]
[1767250047710,4.4e-07,87689.0,87684.0,0.01140458]
[1767250048184,4.4e-07,87689.0,87682.0,0.01140484]
[1767250048392,4.4e-07,87689.0,87683.0,0.01140471]
[1767250049099,4.4e-07,87689.0,87684.0,0.01140458]
[1767250049456,4.4e-07,87689.0,87683.0,0.01140471]
[1767250049696,4.4e-07,87689.0,87685.0,0.01140445]
[1767250050144,4.4e-07,87689.0,87683.0,0.01140471]
[1767250050278,4.4e-07,87689.0,87684.0,0.01140458]
[1767250050484,4.4e-07,87689.0,87683.0,0.01140471]
[1767250051011,4.4e-07,87689.0,87684.0,0.01140458]
[1767250051577,4.4e-07,87689.0,87683.0,0.01140471]
[1767250051778,4.4e-07,87689.0,87682.0,0.06842855]
[1767250051779,4.4e-07,87689.0,87682.0,0.01140484]
[1767250052211,4.4e-07,87689.0,87683.0,0.01140471]
[1767250053014,4.4e-07,87689.0,87682.0,0.01140484]
[1767250053368,4.4e-07,87689.0,87683.0,0.01140471]
[1767250061443,4.4e-07,87689.0,87682.0,0.01140484]
[1767250061649,4.4e-07,87689.0,87683.0,0.01140471]
[1767250062231,4.4e-07,87689.0,87685.0,0.01140445]
[1767250062843,4.4e-07,87689.0,87686.0,0.01140432]
[1767250063467,4.4e-07,87689.0,87685.0,0.01140445]
[1767250063779,4.4e-07,87689.0,87686.0,0.01140432]
[1767250064145,4.4e-07,87689.0,87685.0,0.01140445]
[1767250065370,4.4e-07,87689.0,87681.0,0.05706488]
[1767250065683,4.4e-07,87689.0,87684.0,0.05706449]
[1767250066187,4.4e-07,87689.0,87684.0,0.04565991]
[1767250066484,4.4e-07,87689.0,87684.0,0.05706449]
[1767250067958,4.4e-07,87689.0,87684.0,0.04565991]
[1767250068554,4.4e-07,87689.0,87684.0,0.05706449]
[1767250069351,4.4e-07,87689.0,87685.0,0.01140445]
[1767250069706,4.4e-07,87689.0,87686.0,0.01140432]
[1767250070063,4.4e-07,87689.0,87685.0,0.01140445]
[1767250070267,4.4e-07,87689.0,87684.0,0.05706449]
[1767250070578,4.4e-07,87689.0,87684.0,0.04565991]
[1767250076229,4.4e-07,87689.0,87681.0,0.01140497]
[1767250076633,4.4e-07,87689.0,87682.0,0.01140484]
[1767250076928,4.4e-07,87689.0,87681.0,0.01140497]
[1767250077132,4.4e-07,87689.0,87680.0,0.06063473]
[1767250077361,4.4e-07,87689.0,87681.0,0.01140497]
[1767250079726,4.4e-07,87689.0,87682.0,0.01140484]
[1767250080333,4.4e-07,87689.0,87681.0,0.01140497]
[1767250080871,4.4e-07,87689.0,87681.0,0.04922963]
[1767250107178,4.4e-07,87689.0,87678.0,0.0001459]
[1767250108290,4.4e-07,87689.0,87678.0,0.01155126]
[1767250108748,4.4e-07,87689.0,87678.0,0.05901904]
[1767250110223,4.4e-07,87689.0,87679.0,0.01140523]
[1767250110397,4.4e-07,87689.0,87678.0,0.05901904]
[1767250110854,4.4e-07,87689.0,87678.0,0.04761368]
[1767250112821,0.5160929,87688.0,87678.0,0.0001459]
[1767250114652,4.4e-07,87689.0,87678.0,0.0001459]
[1767250124061,4.4e-07,87689.0,87679.0,0.04746778]
[1767250137339,4.4e-07,87689.0,87679.0,0.05887301]
[1767250137551,4.4e-07,87689.0,87681.0,0.01140497]
[1767250137804,4.4e-07,87689.0,87682.0,0.01140484]
[1767250138397,4.4e-07,87689.0,87683.0,0.01140471]
[1767250138769,4.4e-07,87689.0,87681.0,0.06038699]
[1767250139145,4.4e-07,87689.0,87682.0,0.01140484]
[1767250139551,4.4e-07,87689.0,87683.0,0.01140471]
[1767250140390,4.4e-07,87689.0,87682.0,0.01140484]
[1767250140606,4.4e-07,87689.0,87683.0,0.01140471]
[1767250140777,4.4e-07,87689.0,87681.0,0.06038699]
[1767250141022,4.4e-07,87689.0,87682.0,0.01140484]
[1767250141230,4.4e-07,87689.0,87683.0,0.01140471]
[1767250141854,4.4e-07,87689.0,87684.0,0.01140458]
[1767250142065,4.4e-07,87689.0,87683.0,0.01140471]
[1767250142268,4.4e-07,87689.0,87684.0,0.01140458]
[1767250143237,4.4e-07,87689.0,87685.0,0.01140445]
[1767250143628,4.4e-07,87689.0,87684.0,0.04898202]
[1767250144057,4.4e-07,87689.0,87683.0,0.01140471]
[1767250144924,4.4e-07,87689.0,87684.0,0.01140458]
[1767250145821,4.4e-07,87689.0,87682.0,0.01140484]
[1767250145993,4.4e-07,87689.0,87684.0,0.01140458]
[1767250147772,4.4e-07,87689.0,87683.0,0.01140471]
[1767250152002,4.4e-07,87689.0,87684.0,0.01140458]
[1767250152797,4.4e-07,87689.0,87683.0,0.01140471]
[1767250155036,4.4e-07,87689.0,87684.0,0.0603866]
[1767250156443,4.4e-07,87689.0,87684.0,0.04898202]
[1767250156658,4.4e-07,87689.0,87685.0,0.04898202]
[1767250170369,4.4e-07,87689.0,87685.0,0.06038647]
[1767250170769,4.4e-07,87689.0,87685.0,0.04898202]
[1767250171312,4.4e-07,87689.0,87685.0,0.06038647]
[1767250171606,4.4e-07,87689.0,87685.0,0.04898202]
[1767250173888,4.4e-07,87689.0,87683.0,0.01140471]
[1767250174630,4.4e-07,87689.0,87684.0,0.04738652]
[1767250175394,4.4e-07,87689.0,87684.0,0.0587911]
[1767250175806,4.4e-07,87689.0,87685.0,0.04738652]
[1767250176004,4.4e-07,87689.0,87685.0,0.05879097]
[1767250176145,4.4e-07,87689.0,87685.0,0.04738652]
[1767250176544,4.4e-07,87689.0,87684.0,0.01140458]
[1767250180771,4.4e-07,87689.0,87683.0,0.01140471]
[1767250181157,4.4e-07,87689.0,87684.0,0.01140458]
[1767250181715,4.4e-07,87689.0,87683.0,0.01140471]
[1767250182901,4.4e-07,87689.0,87684.0,0.01140458]
[1767250183119,4.4e-07,87689.0,87683.0,0.01140471]
[1767250184303,4.4e-07,87689.0,87684.0,0.01140458]
[1767250184618,4.4e-07,87689.0,87685.0,0.01140445]
[1767250184833,4.4e-07,87689.0,87686.0,0.01140432]
[1767250185114,4.4e-07,87689.0,87685.0,0.01140445]
[1767250185913,4.4e-07,87689.0,87686.0,0.01140432]
[1767250186479,4.4e-07,87689.0,87685.0,0.01140445]
[1767250187426,4.4e-07,87689.0,87686.0,0.01140432]
[1767250187607,4.4e-07,87689.0,87684.0,0.01140458]
[1767250187793,4.4e-07,87689.0,87685.0,0.01140445]
[1767250188215,4.4e-07,87689.0,87686.0,0.01140432]
[1767250190898,4.4e-07,87689.0,87685.0,0.01140445]
[1767250191065,4.4e-07,87689.0,87686.0,0.01140432]
[1767250191428,4.4e-07,87689.0,87686.0,0.05698213]
[1767250191631,4.4e-07,87689.0,87686.0,0.11400332]
[1767250192655,4.4e-07,87689.0,87686.0,0.05698213]
[1767250192853,4.4e-07,87689.0,87686.0,0.01140432]
[1767250196058,4.4e-07,87689.0,87681.0,0.05698265]
[1767250196331,4.4e-07,87689.0,87684.0,0.01140458]
[1767250196477,4.4e-07,87689.0,87682.0,0.05702424]
[1767250196478,4.4e-07,87689.0,87683.0,0.01140471]
[1767250198769,4.4e-07,87689.0,87684.0,0.01140458]
[1767250198978,4.4e-07,87689.0,87682.0,0.01140484]
[1767250199173,4.4e-07,87689.0,87683.0,0.01140471]
[1767250200867,4.4e-07,87689.0,87684.0,0.01140458]
[1767250201494,4.4e-07,87689.0,87683.0,0.01140471]
[1767250202889,4.4e-07,87689.0,87684.0,0.01140458]
[1767250203527,4.4e-07,87689.0,87683.0,0.01140471]
[1767250203722,4.4e-07,87689.0,87684.0,0.01140458]
[1767250203929,4.4e-07,87689.0,87683.0,0.01140471]
[1767250204603,4.4e-07,87689.0,87682.0,0.01140484]
[1767250205171,4.4e-07,87689.0,87683.0,0.01140471]
[1767250205377,4.4e-07,87689.0,87682.0,0.01140484]
[1767250205742,4.4e-07,87689.0,87683.0,0.01140471]
[1767250206370,4.4e-07,87689.0,87684.0,0.01140458]
[1767250207026,4.4e-07,87689.0,87684.0,0.05698239]
[1767250207360,4.4e-07,87689.0,87684.0,0.04557781]
[1767250208043,4.4e-07,87689.0,87684.0,0.05698239]
[1767250208247,4.4e-07,87689.0,87684.0,0.04557781]
[1767250210499,4.4e-07,87689.0,87684.0,0.05698239]
[1767250210915,4.4e-07,87689.0,87685.0,0.01140445]
[1767250211502,4.4e-07,87689.0,87684.0,0.05698239]
[1767250211699,4.4e-07,87689.0,87685.0,0.01140445]
[1767250213530,4.4e-07,87689.0,87686.0,0.01140432]
[1767250214840,4.4e-07,87689.0,87685.0,0.01140445]
[1767250215693,4.4e-07,87689.0,87686.0,0.01140432]
[1767250218235,4.4e-07,87689.0,87685.0,0.01140445]
[1767250219587,4.4e-07,87689.0,87684.0,0.04557781]
[1767250219814,4.4e-07,87689.0,87684.0,0.05698239]
[1767250220034,4.4e-07,87689.0,87684.0,0.04557781]
[1767250220680,4.4e-07,87689.0,87684.0,0.05698239]
[1767250221122,4.4e-07,87689.0,87686.0,0.01140432]
[1767250221998,4.4e-07,87689.0,87685.0,0.01140445]
[1767250222204,4.4e-07,87689.0,87686.0,0.01140432]
[1767250224042,4.4e-07,87689.0,87685.0,0.01140445]
[1767250224724,4.4e-07,87689.0,87686.0,0.01140432]
[1767250227789,4.4e-07,87689.0,87685.0,0.01140445]
[1767250227993,4.4e-07,87689.0,87686.0,0.01140432]
[1767250230514,4.4e-07,87689.0,87685.0,0.01140445]
[1767250231023,4.4e-07,87689.0,87686.0,0.01140432]
[1767250236737,4.4e-07,87689.0,87687.0,0.04830745]
[1767250250543,4.4e-07,87689.0,87678.0,0.05717259]
[1767250250678,4.4e-07,87689.0,87679.0,0.04690777]
[1767250251041,0.51610423,87689.0,87679.0,0.04690777]
[1767250251314,0.51610423,87689.0,87679.0,0.058313]
[1767250251895,0.51610423,87689.0,87679.0,0.04690777]
[1767250253831,0.51610423,87689.0,87679.0,0.058313]
[1767250255533,0.51610423,87689.0,87680.0,0.04690777]
[1767250255762,0.51610423,87689.0,87680.0,0.05831287]
[1767250257605,0.51610423,87689.0,87680.0,0.04690777]
[1767250258005,0.000415,87681.0,87680.0,0.04690777]
[1767250258280,0.51610423,87689.0,87680.0,0.0114051]
[1767250258572,0.51610423,87689.0,87679.0,0.058313]
[1767250258724,0.51610423,87689.0,87680.0,0.0114051]
[1767250259463,0.51610423,87689.0,87679.0,0.058313]
[1767250260545,0.51610423,87689.0,87680.0,0.0114051]
[1767250261306,0.51610423,87689.0,87679.0,0.04690777]
[1767250261502,0.51610423,87689.0,87679.0,0.058313]
[1767250261881,0.51610423,87689.0,87680.0,0.0114051]
[1767250262085,0.51610423,87689.0,87679.0,0.058313]
[1767250262502,0.51610423,87689.0,87681.0,0.01140497]
[1767250262674,0.51610423,87689.0,87679.0,0.058313]
[1767250262890,0.51610423,87689.0,87680.0,0.04690777]
[1767250263102,0.51610423,87689.0,87681.0,0.01140497]
[1767250263488,0.51610423,87689.0,87680.0,0.05831287]
[1767250264151,0.51610423,87689.0,87681.0,0.01140497]
[1767250265400,0.51610423,87689.0,87680.0,0.05831287]
[1767250265600,4.4e-07,87689.0,87680.0,0.05831287]
[1767250265832,4.4e-07,87689.0,87681.0,0.01140497]
[1767250266164,4.4e-07,87689.0,87680.0,0.05831287]
[1767250268048,4.4e-07,87689.0,87680.0,0.04690777]
[1767250268252,4.4e-07,87689.0,87680.0,0.05831287]
[1767250269416,4.4e-07,87689.0,87680.0,0.04690777]
[1767250285506,4.4e-07,87689.0,87680.0,0.05831287]
[1767250285720,4.4e-07,87689.0,87680.0,0.04690777]
[1767250324282,4.4e-07,87689.0,87680.0,0.05831287]
[1767250324635,4.4e-07,87689.0,87681.0,0.01140497]
[1767250324781,4.4e-07,87689.0,87680.0,0.05831287]
[1767250324983,4.4e-07,87689.0,87680.0,0.04690777]
[1767250331109,4.4e-07,87689.0,87678.0,0.0001459]
[1767250331291,0.51611244,87688.0,87674.0,0.04741787]
[1767250331513,0.51611244,87685.0,87674.0,0.04741787]
[1767250331864,0.51611244,87685.0,87672.0,0.01140615]
[1767250332069,0.51611244,87681.0,87671.0,0.02280628]
[1767250332266,4.4e-07,87689.0,87681.0,0.000279]
[1767250332876,4.4e-07,87689.0,87674.0,0.04741787]
[1767250333077,4.4e-07,87689.0,87675.0,0.05882362]
[1767250333498,0.51611244,87685.0,87675.0,0.05882362]
[1767250333663,0.51611244,87685.0,87676.0,0.01140562]
[1767250333859,0.51611244,87685.0,87677.0,0.04741787]
[1767250334060,0.51611244,87687.0,87677.0,0.05882336]
[1767250334818,0.51611244,87687.0,87678.0,0.05882323]
[1767250335587,0.51611244,87687.0,87679.0,0.01140523]
[1767250336126,0.51611244,87687.0,87678.0,0.04741787]
[1767250337311,4.4e-07,87689.0,87679.0,0.01140523]
[1767250337517,0.51611244,87688.0,87681.0,0.04741787]
[1767250337851,4.4e-07,87689.0,87681.0,0.04741787]
[1767250338005,4.4e-07,87689.0,87681.0,0.05882284]
[1767250338599,4.4e-07,87689.0,87682.0,0.01140484]
[1767250339419,4.4e-07,87689.0,87681.0,0.04741787]
[1767250339829,4.4e-07,87689.0,87681.0,0.05882284]
[1767250340229,4.4e-07,87689.0,87682.0,0.01140484]
[1767250340622,4.4e-07,87689.0,87683.0,0.01140471]
[1767250340836,4.4e-07,87689.0,87681.0,0.04741787]
[1767250344968,4.4e-07,87689.0,87681.0,0.05882284]
[1767250345399,4.4e-07,87689.0,87681.0,0.04741787]
[1767250345582,4.4e-07,87689.0,87686.0,0.01140432]
[1767250345783,4.4e-07,87689.0,87685.0,0.01140445]
[1767250345988,4.4e-07,87689.0,87684.0,0.01140458]
[1767250346199,4.4e-07,87689.0,87685.0,0.01140445]
[1767250346373,4.4e-07,87689.0,87686.0,0.01140432]
[1767250349483,0.0114,87688.0,87686.0,0.01140432]
[1767250349709,0.01085,87688.0,87686.0,0.05963]
[1767250351814,0.0114,87688.0,87686.0,0.05963]
[1767250352377,0.0114,87688.0,87686.0,0.04822568]
[1767250352781,0.0114,87688.0,87685.0,0.01140445]
[1767250353825,0.000549,87685.0,87682.0,0.01140484]
[1767250354021,0.000549,87685.0,87683.0,0.05963039]
[1767250354254,0.0114,87688.0,87684.0,0.01140458]
[1767250356740,0.0114,87688.0,87685.0,0.01140445]
[1767250357169,0.0114,87688.0,87684.0,0.01140458]
[1767250359182,0.0114,87688.0,87683.0,0.04822568]
[1767250359788,0.0114,87688.0,87677.0,0.0570269]
[1767250359988,0.0114,87688.0,87679.0,0.01140523]
[1767250360194,0.0114,87688.0,87678.0,0.01140536]
[1767250360405,0.0114,87688.0,87679.0,0.01140523]
[1767250360905,0.0114,87688.0,87680.0,0.0114051]
[1767250361446,0.0114,87688.0,87679.0,0.01140523]
[1767250361829,0.0114,87688.0,87677.0,0.05963117]
[1767250362006,0.0114,87688.0,87678.0,0.01140536]
[1767250362207,0.0114,87688.0,87677.0,0.04822568]
[1767250362415,0.0114,87688.0,87675.0,0.01140575]
[1767250363033,0.0114,87688.0,87675.0,0.05702879]
[1767250363238,0.0114,87688.0,87675.0,0.01140575]
[1767250363454,0.0114,87688.0,87677.0,0.01140549]
[1767250364174,0.0114,87688.0,87676.0,0.01140562]
[1767250364973,0.0114,87688.0,87677.0,0.01140549]
[1767250365381,0.0114,87688.0,87676.0,0.01140562]
[1767250366789,0.0114,87688.0,87679.0,0.01140523]
[1767250366941,0.0114,87688.0,87680.0,0.0114051]
[1767250367872,0.0114,87688.0,87679.0,0.01140523]
[1767250368054,0.0114,87688.0,87680.0,0.0114051]
[1767250368471,0.0114,87688.0,87678.0,0.01140536]
[1767250368807,0.0114,87688.0,87679.0,0.01140523]
[1767250368994,0.0114,87688.0,87677.0,0.05963117]
[1767250369983,0.0114,87688.0,87677.0,0.04822568]
[1767250370703,0.0114,87688.0,87677.0,0.05963117]
[1767250371066,0.0114,87688.0,87677.0,0.04822568]
[1767250371271,0.0114,87688.0,87677.0,0.05963117]
[1767250371461,0.0114,87688.0,87677.0,0.04822568]
[1767250371680,0.0114,87688.0,87677.0,0.05963117]
[1767250371885,0.0114,87688.0,87677.0,0.04822568]
[1767250373623,0.0114,87688.0,87677.0,0.05963117]
[1767250373824,0.0114,87688.0,87677.0,0.04822568]
[1767250389430,0.0114,87688.0,87677.0,0.04816865]
[1767250401257,4.4e-07,87689.0,87677.0,0.04816865]
[1767250408058,4.4e-07,87689.0,87675.0,0.01140575]
[1767250408262,4.4e-07,87689.0,87674.0,0.01140589]
[1767250408715,4.4e-07,87689.0,87675.0,0.01140575]
[1767250408897,4.4e-07,87689.0,87674.0,0.05797208]
[1767250410486,4.4e-07,87689.0,87675.0,0.01140575]
[1767250410717,4.4e-07,87689.0,87675.0,0.04656619]
[1767250411084,4.4e-07,87689.0,87675.0,0.05797194]
[1767250411288,4.4e-07,87689.0,87675.0,0.04656619]
[1767250412424,4.4e-07,87689.0,87675.0,0.05797194]
[1767250412625,4.4e-07,87689.0,87675.0,0.04656619]
[1767250418630,0.51615851,87685.0,87675.0,0.04656619]
[1767250435281,4.4e-07,87689.0,87675.0,0.04656619]
[1767250435506,4.4e-07,87689.0,87675.0,0.05797194]
[1767250435869,0.51615851,87685.0,87675.0,0.05797194]
[1767250436066,0.51615851,87685.0,87676.0,0.01140562]
[1767250436289,0.51615851,87685.0,87677.0,0.0488394]
[1767250437094,0.51615851,87687.0,87677.0,0.0488394]
[1767250454626,0.51615851,87687.0,87677.0,0.06024489]
[1767250455590,0.51615851,87687.0,87678.0,0.01140536]
[1767250455830,0.51615851,87687.0,87677.0,0.0488394]
[1767250463385,0.51615851,87687.0,87677.0,0.06024489]
[1767250463799,0.51615851,87687.0,87677.0,0.0488394]
[1767250465569,0.51615851,87687.0,87677.0,0.06024489]
[1767250465770,0.51615851,87687.0,87677.0,0.0488394]
[1767250465986,0.51615851,87687.0,87677.0,0.06024489]
[1767250466165,0.51615851,87687.0,87677.0,0.0488394]
[1767250466370,0.51615851,87687.0,87677.0,0.06024489]
[1767250467714,0.51615851,87687.0,87678.0,0.01140536]
[1767250468138,0.51615851,87687.0,87677.0,0.06024489]
[1767250468266,4.4e-07,87689.0,87677.0,0.06024489]
[1767250469397,4.4e-07,87689.0,87678.0,0.01140536]
[1767250469989,4.4e-07,87689.0,87677.0,0.06024489]
[1767250476648,4.4e-07,87689.0,87677.0,0.0488394]
[1767250477007,4.4e-07,87689.0,87677.0,0.06024489]
[1767250477356,4.4e-07,87689.0,87677.0,0.0488394]
[1767250477672,4.4e-07,87689.0,87678.0,0.01140536]
[1767250478428,4.4e-07,87689.0,87677.0,0.06024489]
[1767250478777,4.4e-07,87689.0,87678.0,0.01140536]
[1767250479625,4.4e-07,87689.0,87677.0,0.06024489]
[1767250480130,4.4e-07,87689.0,87678.0,0.01140536]
[1767250481631,4.4e-07,87689.0,87680.0,0.0114051]
[1767250482040,4.4e-07,87689.0,87681.0,0.01140497]
[1767250482223,4.4e-07,87689.0,87680.0,0.0114051]
[1767250482409,4.4e-07,87689.0,87681.0,0.01140497]
[1767250482606,4.4e-07,87689.0,87682.0,0.01140484]
[1767250485628,4.4e-07,87689.0,87683.0,0.01140471]
[1767250486405,4.4e-07,87689.0,87682.0,0.01140484]
[1767250487264,4.4e-07,87689.0,87681.0,0.01140497]
[1767250488068,4.4e-07,87689.0,87680.0,0.0114051]
[1767250488617,4.4e-07,87689.0,87681.0,0.01140497]
[1767250489688,4.4e-07,87689.0,87680.0,0.0114051]
[1767250489894,4.4e-07,87689.0,87681.0,0.01140497]
[1767250490268,4.4e-07,87689.0,87680.0,0.0114051]
[1767250490475,4.4e-07,87689.0,87681.0,0.01140497]
[1767250492078,4.4e-07,87689.0,87682.0,0.01140484]
[1767250493538,4.4e-07,87689.0,87681.0,0.01140497]